bitfinex/quotes_SOLUSD_20250829
["timestamp","ask_amount","ask_price","bid_price","bid_amount"]
[1756461045787,5.50486831,207.69,207.68,0.2]
[1756461045983,24.98047171,207.69,207.68,0.2]
[1756461049399,0.69,207.74,207.68,0.2]
[1756461049610,19.4756034,207.71,207.68,0.9]
[1756461049769,19.4756034,207.71,207.68,0.2]
[1756461049974,19.4756034,207.7,207.68,0.2]
[1756461050197,4.81394117,207.73,207.68,0.2]
[1756461050371,0.69,207.77,207.69,24.27163843]
[1756461050705,19.4756034,207.76,207.72,4.09603503]
[1756461050890,19.4756034,207.77,207.73,0.7]
[1756461051099,19.4756034,207.77,207.72,4.09603503]
[1756461051100,19.4756034,207.75,207.72,4.09603503]
[1756461051289,19.4756034,207.75,207.72,4.79603503]
[1756461051490,19.4756034,207.75,207.72,4.09603503]
[1756461051491,24.28909024,207.75,207.72,4.09603503]
[1756461051695,19.4756034,207.74,207.72,4.09603503]
[1756461051875,24.28909024,207.75,207.72,4.09603503]
[1756461052281,19.4756034,207.75,207.72,4.09603503]
[1756461052505,26.0,207.73,207.72,4.09603503]
[1756461053319,26.0,207.73,207.72,4.79603503]
[1756461053685,19.4756034,207.77,207.74,4.09603503]
[1756461053886,24.28873189,207.77,207.74,4.09603503]
[1756461054103,26.0,207.75,207.74,4.09603503]
[1756461054402,24.28873189,207.77,207.74,4.09603503]
[1756461054610,26.0,207.75,207.74,4.79603503]
[1756461054805,26.0,207.75,207.74,4.09603503]
[1756461057910,19.4756034,207.75,207.74,4.09603503]
[1756461058109,20.1656034,207.75,207.72,4.09603503]
[1756461058293,19.4756034,207.75,207.72,4.09603503]
[1756461059897,19.4756034,207.73,207.68,4.29603503]
[1756461060093,19.4756034,207.71,207.68,4.99603503]
[1756461060298,26.0,207.69,207.68,4.29603503]
[1756461060919,26.0,207.72,207.68,4.29603503]
[1756461061093,26.0,207.72,207.7,4.09603503]
[1756461061290,45.4756034,207.72,207.7,4.09603503]
[1756461062515,19.4756034,207.71,207.7,4.09603503]
[1756461062888,19.4756034,207.71,207.68,4.29603503]
[1756461063118,19.4756034,207.71,207.7,4.09603503]
[1756461064814,19.4756034,207.71,207.68,4.29603503]
[1756461065008,45.4756034,207.69,207.68,0.2]
[1756461065231,19.4756034,207.69,207.68,0.2]
[1756461065411,12.4249629,207.69,207.68,0.2]
[1756461065713,38.4249629,207.69,207.68,0.2]
[1756461065913,12.4249629,207.69,207.68,0.2]
[1756461066420,11.7149629,207.69,207.68,0.2]
[1756461067415,4.81426402,207.72,207.69,4.09603503]
[1756461067416,26.0,207.7,207.69,4.09603503]
[1756461067902,46.22090941,207.7,207.68,0.2]
[1756461068104,0.71,207.69,207.68,0.2]
[1756461068915,26.0,207.69,207.68,0.2]
[1756461069108,0.71,207.69,207.68,0.2]
[1756461069500,20.22090941,207.69,207.68,0.2]
[1756461069698,46.22090941,207.69,207.68,0.2]
[1756461069895,59.56090941,207.69,207.67,0.03]
[1756461070102,19.51090941,207.68,207.67,0.03]
[1756461070620,45.51090941,207.68,207.67,0.03]
[1756461071118,50.32600956,207.68,207.67,0.03]
[1756461071514,30.81510015,207.68,207.67,0.03]
[1756461071715,50.32600956,207.68,207.67,0.03]
[1756461072713,24.32600956,207.68,207.67,0.03]
[1756461072920,25.03600956,207.68,207.67,0.03]
[1756461074300,64.37600956,207.68,207.67,0.03]
[1756461076013,26.0,207.66,207.65,0.03]
[1756461076224,45.51090941,207.66,207.65,0.03]
[1756461076525,46.22090941,207.66,207.65,0.03]
[1756461076720,46.22090941,207.66,207.63,0.03]
[1756461076721,85.56090941,207.66,207.63,0.03]
[1756461076924,19.51090941,207.64,207.63,1e-08]
[1756461077115,58.85090941,207.64,207.63,1e-08]
[1756461077306,58.85090941,207.64,207.61,0.2]
[1756461077307,45.51090941,207.62,207.61,0.2]
[1756461077508,84.85090941,207.62,207.61,0.2]
[1756461077724,85.56090941,207.62,207.61,0.2]
[1756461079199,90.37740107,207.62,207.61,0.2]
[1756461080406,94.29466295,207.62,207.61,0.2]
[1756461080713,94.29466295,207.62,207.61,1e-08]
[1756461081416,125.84680152,207.62,207.53,0.2]
[1756461081617,19.51090941,207.54,207.53,0.2]
[1756461083418,24.32925768,207.54,207.53,0.2]
[1756461083624,65.34,207.58,207.54,4.09603503]
[1756461083825,19.51090941,207.55,207.54,4.09603503]
[1756461084127,65.34,207.58,207.54,4.09603503]
[1756461084128,84.85090941,207.58,207.54,4.74603503]
[1756461084320,84.85090941,207.58,207.54,4.09603503]
[1756461084524,84.85090941,207.58,207.54,4.74603503]
[1756461084725,4.81765187,207.57,207.54,4.74603503]
[1756461085036,4.81765187,207.57,207.54,4.09603503]
[1756461085408,24.32856128,207.57,207.54,4.09603503]
[1756461085919,19.51090941,207.56,207.53,0.2]
[1756461086427,19.51090941,207.56,207.54,4.09603503]
[1756461086625,4.81811611,207.55,207.54,4.09603503]
[1756461087909,26.0,207.58,207.56,4.09603503]
[1756461088109,26.0,207.58,207.56,4.74603503]
[1756461088433,24.32839169,207.58,207.56,4.09603503]
[1756461088634,50.32839169,207.58,207.56,4.09603503]
[1756461088817,26.0,207.58,207.56,4.09603503]
[1756461089227,26.0,207.58,207.54,4.09603503]
[1756461089415,46.22090941,207.58,207.54,4.09603503]
[1756461089610,51.03840666,207.58,207.54,4.09603503]
[1756461090035,20.22090941,207.57,207.54,4.09603503]
[1756461090227,45.51090941,207.55,207.53,0.2]
[1756461090918,4.81834827,207.54,207.53,0.2]
[1756461093330,5.53834827,207.54,207.53,0.2]
[1756461093525,24.32925768,207.54,207.53,0.2]
[1756461095420,4.81834827,207.54,207.53,0.2]
[1756461095746,30.8181587,207.55,207.53,4.99603503]
[1756461096042,30.8181587,207.55,207.53,4.29603503]
[1756461097933,19.51090941,207.54,207.53,0.2]
[1756461098132,20.23090941,207.54,207.53,0.2]
[1756461098523,26.72,207.54,207.53,0.2]
[1756461098728,46.23090941,207.54,207.53,0.2]
[1756461098924,51.04925768,207.54,207.53,0.2]
[1756461099142,31.53834827,207.54,207.53,0.2]
[1756461099441,26.0,207.54,207.53,0.2]
[1756461099629,19.51090941,207.57,207.53,0.2]
[1756461099630,45.51090941,207.57,207.53,0.2]
[1756461099831,4.8180722,207.56,207.53,0.2]
[1756461100036,26.0,207.55,207.53,0.2]
[1756461102037,26.0,207.56,207.53,0.9]
[1756461102245,26.0,207.56,207.54,4.09603503]
[1756461106045,11.72358286,207.57,207.54,4.09603503]
[1756461107059,11.72358286,207.57,207.54,4.79603503]
[1756461107349,11.72358286,207.57,207.54,4.09603503]
[1756461108237,12.44358286,207.57,207.54,4.09603503]
[1756461110934,11.72358286,207.55,207.54,4.09603503]
[1756461111135,11.72358286,207.55,207.53,0.2]
[1756461111136,12.44358286,207.55,207.53,0.2]
[1756461111354,11.72358286,207.54,207.53,0.2]
[1756461111854,12.44358286,207.55,207.53,0.2]
[1756461112172,11.72358286,207.54,207.53,0.2]
[1756461112536,12.44358286,207.54,207.53,0.2]
[1756461112957,17.26193113,207.54,207.53,0.2]
[1756461113154,0.72,207.54,207.53,0.2]
[1756461113357,16.54162732,207.56,207.53,0.2]
[1756461113556,42.54162732,207.56,207.53,0.2]
[1756461113761,11.72358286,207.58,207.53,0.2]
[1756461113956,11.72358286,207.58,207.55,4.09603503]
[1756461114261,12.44358286,207.58,207.55,4.09603503]
[1756461114460,37.72358286,207.57,207.55,4.09603503]
[1756461115563,0.06,207.63,207.57,4.09603503]
[1756461115761,0.06,207.63,207.6,4.09603503]
[1756461115941,0.06,207.63,207.62,4.09603503]
[1756461116140,0.06,207.63,207.62,15.81961789]
[1756461116361,0.06,207.63,207.62,16.51961789]
[1756461116539,0.06,207.63,207.62,4.79603503]
[1756461117356,0.06,207.63,207.62,29.1309326]
[1756461117748,0.06,207.63,207.62,4.79603503]
[1756461117942,0.06,207.63,207.62,24.31444094]
[1756461118450,0.06,207.63,207.62,29.1309326]
[1756461120045,4.0498378,207.76,207.74,4.09603503]
[1756461120345,4.0498378,207.76,207.7,4.09603503]
[1756461120346,20.23840591,207.75,207.7,4.09603503]
[1756461120548,19.51840591,207.71,207.63,4.09603503]
[1756461120874,19.51840591,207.64,207.63,4.09603503]
[1756461121165,19.51840591,207.65,207.63,4.09603503]
[1756461121341,0.68,207.67,207.63,4.09603503]
[1756461121636,5.41473444,207.74,207.67,4.09603503]
[1756461121637,19.51840591,207.7,207.67,4.09603503]
[1756461121836,19.51840591,207.69,207.67,4.09603503]
[1756461122061,20.19840591,207.69,207.67,4.09603503]
[1756461122271,19.51840591,207.68,207.67,4.09603503]
[1756461122573,20.19840591,207.68,207.62,4.09603503]
[1756461122863,19.51840591,207.64,207.62,4.09603503]
[1756461123066,0.06,207.66,207.62,4.09603503]
[1756461123260,19.51840591,207.64,207.62,4.09603503]
[1756461123651,24.33443432,207.64,207.62,4.09603503]
[1756461123856,20.19840591,207.65,207.62,4.09603503]
[1756461124160,19.51840591,207.65,207.62,4.09603503]
[1756461124337,0.06,207.66,207.64,4.09603503]
[1756461124540,0.06,207.66,207.64,4.77603503]
[1756461124755,0.06,207.66,207.64,4.09603503]
[1756461125371,20.19840591,207.65,207.64,4.09603503]
[1756461125742,19.51840591,207.65,207.64,4.09603503]
[1756461125942,24.394015,207.66,207.64,4.09603503]
[1756461126949,25.074015,207.66,207.64,4.09603503]
[1756461127355,19.51840591,207.65,207.64,4.09603503]
[1756461127650,0.06,207.66,207.65,0.68]
[1756461127853,0.06,207.66,207.65,78.5]
[1756461128450,4.8755639,207.66,207.65,78.5]
[1756461128757,19.57840591,207.66,207.65,78.5]
[1756461128953,0.06,207.66,207.65,78.5]
[1756461131164,0.06,207.66,207.65,79.18]
[1756461131576,0.06,207.66,207.65,78.5]
[1756461131748,19.57840591,207.66,207.65,78.5]
[1756461131948,20.25840591,207.66,207.64,4.09603503]
[1756461132173,20.19840591,207.65,207.64,4.09603503]
[1756461132562,0.68,207.65,207.64,4.09603503]
[1756461132869,20.19840591,207.65,207.64,4.09603503]
[1756461133252,25.01420172,207.65,207.64,4.09603503]
[1756461134185,25.01420172,207.65,207.62,4.09603503]
[1756461134355,19.51840591,207.63,207.62,4.09603503]
[1756461134650,20.19840591,207.64,207.62,4.09603503]
[1756461134874,0.68,207.64,207.62,4.09603503]
[1756461135169,20.19840591,207.64,207.62,4.09603503]
[1756461135387,19.51840591,207.64,207.62,4.09603503]
[1756461135688,19.57840591,207.66,207.64,4.09603503]
[1756461135889,19.51840591,207.65,207.64,4.09603503]
[1756461136250,20.19840591,207.65,207.64,4.09603503]
[1756461137455,17.21116142,207.65,207.64,4.09603503]
[1756461138485,17.21116142,207.65,207.61,4.09603503]
[1756461138690,11.71536561,207.62,207.61,4.09603503]
[1756461139556,16.53185727,207.62,207.61,4.09603503]
[1756461140058,17.21185727,207.62,207.61,4.09603503]
[1756461140583,16.53185727,207.62,207.61,4.09603503]
[1756461140779,4.81649166,207.62,207.61,4.09603503]
[1756461140976,16.53185727,207.62,207.61,4.09603503]
[1756461141152,17.21185727,207.62,207.61,4.09603503]
[1756461141358,29.25308643,207.62,207.58,4.09603503]
[1756461141661,29.25308643,207.62,207.57,78.5]
[1756461141662,4.81741978,207.58,207.57,82.59603503]
[1756461141881,17.21278539,207.58,207.57,4.09603503]
[1756461142070,5.49741978,207.58,207.57,4.09603503]
[1756461142267,17.21278539,207.58,207.57,4.09603503]
[1756461142466,17.21278539,207.58,207.55,4.09603503]
[1756461142788,11.71536561,207.56,207.55,4.09603503]
[1756461144980,16.53324959,207.56,207.55,4.09603503]
[1756461147188,17.21324959,207.56,207.55,4.09603503]
[1756461147476,16.53324959,207.56,207.55,4.09603503]
[1756461148666,17.21324959,207.56,207.55,4.09603503]
[1756461148879,16.53324959,207.56,207.55,4.09603503]
[1756461150272,4.8176376,207.58,207.55,4.09603503]
[1756461150479,30.8176376,207.58,207.57,4.09603503]
[1756461150679,42.53300321,207.58,207.57,4.09603503]
[1756461150885,16.53300321,207.58,207.57,4.09603503]
[1756461151767,43.22300321,207.58,207.55,4.09603503]
[1756461151983,11.71536561,207.56,207.55,4.09603503]
[1756461152162,11.71536561,207.56,207.54,0.03]
[1756461152366,38.40536561,207.55,207.54,0.03]
[1756461152583,26.69,207.55,207.54,0.03]
[1756461152766,38.40536561,207.55,207.54,0.03]
[1756461154561,43.22348172,207.55,207.54,0.03]
[1756461158289,43.22348172,207.55,207.53,0.2]
[1756461158290,43.22348172,207.55,207.53,1e-08]
[1756461158468,26.0,207.52,207.51,0.03]
[1756461158668,76.89536561,207.52,207.51,0.03]
[1756461158870,82.40417825,207.52,207.51,0.03]
[1756461159079,84.33705825,207.52,207.51,1e-08]
[1756461159293,84.33705825,207.52,207.5,1e-08]
[1756461159608,11.71536561,207.51,207.5,1e-08]
[1756461159977,12.40536561,207.51,207.5,1e-08]
[1756461160890,17.22441047,207.51,207.5,1e-08]
[1756461161097,19.15729147,207.51,207.5,1e-08]
[1756461161283,19.15729147,207.51,207.49,1e-08]
[1756461161487,11.71536561,207.5,207.49,1e-08]
[1756461161889,12.40536561,207.5,207.49,1e-08]
[1756461163101,17.22464271,207.5,207.49,1e-08]
[1756461167685,28.94000832,207.5,207.48,1e-08]
[1756461167901,62.59073122,207.49,207.48,1e-08]
[1756461168307,63.28073122,207.49,207.48,1e-08]
[1756461168710,65.21389222,207.49,207.48,1e-08]
[1756461169285,70.03340159,207.49,207.48,1e-08]
[1756461171589,70.03340159,207.49,207.46,0.03]
[1756461171590,26.0,207.47,207.46,0.03]
[1756461171781,76.87536561,207.47,207.45,1e-08]
[1756461171984,12.40536561,207.46,207.45,1e-08]
[1756461173401,11.71536561,207.43,207.42,0.03]
[1756461173795,16.53626904,207.43,207.42,0.03]
[1756461174312,16.53626904,207.43,207.42,4.12603503]
[1756461174616,16.53626904,207.43,207.42,0.03]
[1756461175388,17.22626904,207.43,207.42,0.03]
[1756461177425,4.126035,207.46,207.42,4.78603503]
[1756461177610,4.126035,207.46,207.43,0.66]
[1756461177828,11.71536561,207.45,207.44,0.66]
[1756461177995,11.71536561,207.45,207.44,4.75603503]
[1756461178193,16.53534481,207.47,207.44,4.75603503]
[1756461178416,16.53534481,207.47,207.45,0.66]
[1756461179207,11.71536561,207.46,207.44,4.09603503]
[1756461179399,16.53561544,207.46,207.44,4.75603503]
[1756461179998,0.06,207.5,207.48,4.09603503]
[1756461180199,4.87932075,207.5,207.49,0.66]
[1756461180419,16.59468636,207.5,207.49,0.66]
[1756461180732,16.59468636,207.5,207.48,4.09603503]
[1756461181019,11.71536561,207.49,207.48,4.79603503]
[1756461181322,16.59468636,207.5,207.48,4.79603503]
[1756461182107,4.87932075,207.5,207.48,4.79603503]
[1756461182306,4.87932075,207.5,207.49,0.7]
[1756461182522,0.06,207.5,207.49,0.7]
[1756461185810,0.06,207.5,207.49,12.41536561]
[1756461186123,0.06,207.5,207.49,17.23487498]
[1756461187820,0.06,207.5,207.49,6.0014603]
[1756461188023,0.06,207.5,207.49,58.28654198]
[1756461188215,0.06,207.5,207.49,58.76849291]
[1756461188737,0.06,207.5,207.49,63.76849291]
[1756461189144,0.06,207.5,207.49,24.16654198]
[1756461189439,0.06,207.5,207.49,58.26654198]
[1756461189649,0.06,207.5,207.49,46.55117637]
[1756461189821,0.06,207.5,207.49,84.26654198]
[1756461190216,0.06,207.5,207.48,82.59603503]
[1756461190520,13.59559401,207.49,207.48,82.59603503]
[1756461190719,13.59559401,207.49,207.48,4.09603503]
[1756461191128,11.71536561,207.49,207.48,4.09603503]
[1756461191322,30.13046899,207.49,207.48,4.09603503]
[1756461191710,30.79046899,207.49,207.48,4.09603503]
[1756461192110,13.59559401,207.48,207.46,4.09603503]
[1756461192306,25.31095962,207.47,207.46,4.09603503]
[1756461192536,25.97095962,207.47,207.46,4.09603503]
[1756461193441,13.59559401,207.47,207.46,4.79603503]
[1756461193612,13.59559401,207.47,207.46,4.09603503]
[1756461194012,13.59559401,207.47,207.46,4.79603503]
[1756461194411,13.59559401,207.47,207.46,4.09603503]
[1756461194412,25.31095962,207.47,207.46,4.09603503]
[1756461194621,25.97095962,207.47,207.46,4.09603503]
[1756461195234,30.79093359,207.47,207.46,4.09603503]
[1756461195423,25.31095962,207.47,207.46,4.09603503]
[1756461195627,30.13093359,207.47,207.46,4.09603503]
[1756461195822,13.59559401,207.47,207.46,4.09603503]
[1756461196027,25.31095962,207.47,207.46,4.09603503]
[1756461197717,13.59559401,207.47,207.46,4.09603503]
[1756461198033,25.31095962,207.47,207.46,4.09603503]
[1756461198231,30.13093359,207.47,207.46,4.09603503]
[1756461198745,30.79093359,207.47,207.46,4.09603503]
[1756461199223,30.13093359,207.47,207.46,4.09603503]
[1756461199832,30.79093359,207.47,207.46,4.09603503]
[1756461201842,25.31095962,207.47,207.46,4.09603503]
[1756461202868,13.59559401,207.47,207.46,4.09603503]
[1756461203145,13.59559401,207.47,207.46,4.79603503]
[1756461204039,13.59559401,207.47,207.46,99.83160694]
[1756461204657,13.59559401,207.47,207.46,95.01140064]
[1756461205349,13.59559401,207.47,207.46,83.29603503]
[1756461205855,13.59559401,207.47,207.46,95.01140064]
[1756461206560,13.59559401,207.47,207.46,83.29603503]
[1756461206754,13.59559401,207.47,207.46,95.01140064]
[1756461207050,13.59559401,207.47,207.46,99.83160694]
[1756461209250,13.59559401,207.47,207.46,21.33160694]
[1756461210353,0.06,207.5,207.49,30.09603503]
[1756461210563,0.06,207.5,207.49,80.85140064]
[1756461210858,0.06,207.5,207.49,81.55140064]
[1756461211050,0.06,207.5,207.49,160.05140064]
[1756461211763,0.06,207.5,207.49,120.31140064]
[1756461211953,0.06,207.5,207.49,82.59603503]
[1756461212153,0.06,207.5,207.49,121.63603503]
[1756461212353,0.74,207.5,207.49,121.63603503]
[1756461212965,0.74,207.5,207.49,4.09603503]
[1756461212966,12.45536561,207.5,207.49,4.09603503]
[1756461213871,17.27464271,207.5,207.49,4.09603503]
[1756461214667,17.27464271,207.5,207.47,4.09603503]
[1756461214861,11.71536561,207.48,207.47,4.09603503]
[1756461215170,12.39536561,207.48,207.47,4.09603503]
[1756461216155,0.68,207.48,207.47,4.09603503]
[1756461216362,5.55950143,207.5,207.49,4.09603503]
[1756461216645,17.27486704,207.5,207.49,4.09603503]
[1756461220274,0.06,207.5,207.49,4.09603503]
[1756461220459,11.77536561,207.5,207.49,4.09603503]
[1756461221061,12.45536561,207.5,207.49,4.09603503]
[1756461221370,0.74,207.5,207.49,4.09603503]
[1756461221559,0.06,207.5,207.49,4.09603503]
[1756461225466,11.77536561,207.5,207.49,4.09603503]
[1756461225781,12.45536561,207.5,207.49,4.09603503]
[1756461226173,11.77536561,207.5,207.49,4.09603503]
[1756461226476,0.06,207.5,207.49,4.09603503]
[1756461229986,0.06,207.5,207.49,43.07603503]
[1756461234364,0.06,207.53,207.49,60.79286094]
[1756461234567,0.06,207.53,207.52,15.81140064]
[1756461234871,0.06,207.53,207.52,54.77140064]
[1756461235076,0.06,207.53,207.52,55.47140064]
[1756461236175,0.06,207.53,207.52,60.29021328]
[1756461236686,0.06,207.53,207.52,60.77209454]
[1756461238975,0.06,207.53,207.52,60.29021328]
[1756461240501,0.06,207.55,207.54,4.09603503]
[1756461240667,0.06,207.55,207.54,133.19140064]
[1756461240863,0.06,207.55,207.54,133.89140064]
[1756461241393,0.06,207.55,207.54,265.39140064]
[1756461242101,0.06,207.55,207.54,270.20974891]
[1756461242302,11.71536561,207.63,207.57,26.0]
[1756461242593,30.87580586,207.65,207.62,4.09603503]
[1756461242980,0.69,207.64,207.62,4.09603503]
[1756461243184,0.69,207.63,207.62,4.09603503]
[1756461243688,17.2216253,207.63,207.62,4.09603503]
[1756461243891,17.2216253,207.63,207.52,26.0]
[1756461243892,17.2216253,207.63,207.6,4.09603503]
[1756461244097,11.71536561,207.61,207.6,4.09603503]
[1756461244289,12.40536561,207.61,207.6,4.09603503]
[1756461245499,17.22208927,207.61,207.6,4.09603503]
[1756461248396,17.28208927,207.61,207.6,4.09603503]
[1756461252091,17.28208927,207.61,207.58,4.09603503]
[1756461252311,11.71536561,207.59,207.58,4.09603503]
[1756461252519,12.40536561,207.59,207.58,4.09603503]
[1756461253318,12.40536561,207.59,207.57,4.09603503]
[1756461253507,5.50741978,207.58,207.57,4.09603503]
[1756461253824,17.22278539,207.58,207.57,4.09603503]
[1756461254320,26.0,207.56,207.55,4.09603503]
[1756461254509,38.40536561,207.56,207.55,4.09603503]
[1756461254707,38.40536561,207.56,207.54,0.03]
[1756461255023,37.71536561,207.55,207.54,0.03]
[1756461255440,26.69,207.55,207.54,0.03]
[1756461255603,43.22348172,207.55,207.54,0.03]
[1756461262027,8.14183797,207.58,207.57,4.09603503]
[1756461262236,11.71536561,207.58,207.57,4.09603503]
[1756461263510,0.06,207.61,207.6,4.09603503]
[1756461264220,0.06,207.61,207.6,4.79603503]
[1756461267317,11.77536561,207.61,207.6,4.09603503]
[1756461267648,16.59208927,207.61,207.6,4.09603503]
[1756461268136,0.06,207.61,207.6,4.79603503]
[1756461269349,0.06,207.61,207.6,4.09603503]
[1756461270915,0.06,207.61,207.6,4.81603503]
[1756461271114,0.06,207.61,207.6,21.34835632]
[1756461271534,0.06,207.61,207.6,23.27937132]
[1756461272749,0.06,207.61,207.6,6.74705003]
[1756461272932,0.06,207.61,207.6,48.45299071]
[1756461273132,0.06,207.61,207.6,71.94372232]
[1756461275524,1e-08,207.61,207.6,84.14078349]
[1756461276734,1e-08,207.61,207.6,89.14078349]
[1756461277742,1e-08,207.61,207.6,89.12078349]
[1756461279253,0.06,207.66,207.65,82.41603502]
[1756461279468,0.06,207.66,207.65,133.41298021]
[1756461279637,0.06,207.66,207.65,133.65140063]
[1756461279834,0.06,207.66,207.65,265.15140063]
[1756461280143,1e-08,207.66,207.65,55.33140064]
[1756461280352,1e-08,207.66,207.65,17.01298022]
[1756461280530,1e-08,207.66,207.65,57.74269022]
[1756461282357,1e-08,207.66,207.65,62.55848603]
[1756461282844,1e-08,207.66,207.65,67.55848603]
[1756461284366,1e-08,207.66,207.65,72.40995691]
[1756461286727,1e-08,207.66,207.65,32.88995691]
[1756461286946,1e-08,207.66,207.65,66.64995691]
[1756461287360,1e-08,207.66,207.65,232.85848602]
[1756461287563,0.66000001,207.66,207.65,84.34574502]
[1756461287740,0.66000001,207.66,207.65,123.10574502]
[1756461288259,1e-08,207.66,207.65,54.57140064]
[1756461288441,1e-08,207.66,207.65,71.16256245]
[1756461289148,1e-08,207.66,207.65,72.36414203]
[1756461289344,1e-08,207.66,207.65,149.96414202]
[1756461289556,1e-08,207.66,207.65,149.48256244]
[1756461290537,1e-08,207.66,207.65,150.20256244]
[1756461291156,1e-08,207.68,207.67,4.09603503]
[1756461291341,1e-08,207.68,207.67,75.03293384]
[1756461291659,1e-08,207.69,207.67,75.75293384]
[1756461291841,0.1,207.71,207.7,30.09603503]
[1756461292038,0.1,207.71,207.7,159.35286427]
[1756461292238,0.1,207.71,207.7,159.59140063]
[1756461293174,0.1,207.71,207.7,295.90603712]
[1756461293876,0.1,207.71,207.7,295.18603712]
[1756461294046,0.1,207.71,207.7,300.18603712]
[1756461296349,0.1,207.71,207.7,302.11556112]
[1756461296548,0.1,207.71,207.7,302.83556112]
[1756461296775,0.1,207.71,207.7,302.11556112]
[1756461297149,0.1,207.71,207.7,263.37556112]
[1756461297353,0.1,207.71,207.7,302.11556112]
[1756461298477,0.66,207.75,207.7,314.15215235]
[1756461298688,0.66,207.75,207.74,15.81140064]
[1756461298980,0.06,207.76,207.74,55.01277158]
[1756461299179,0.72,207.76,207.75,11.71536561]
[1756461299344,0.72,207.76,207.75,13.64479761]
[1756461299540,0.06,207.76,207.75,18.45827534]
[1756461299746,0.06,207.76,207.75,19.17827534]
[1756461299970,0.06,207.76,207.75,18.45827534]
[1756461300152,0.06,207.76,207.75,19.17827534]
[1756461300962,0.1,207.8,207.78,41.81140064]
[1756461301369,0.1,207.8,207.78,80.53140064]
[1756461301544,0.1,207.8,207.78,87.27333539]
[1756461302151,0.1,207.8,207.78,92.27333539]
[1756461302677,0.1,207.8,207.78,6.02518703]
[1756461302678,0.74,207.79,207.78,6.02518703]
[1756461302885,0.74,207.79,207.78,42.79603503]
[1756461303178,0.74,207.79,207.78,47.60881778]
[1756461303366,0.74,207.79,207.78,20.62418339]
[1756461303548,0.74,207.79,207.78,59.32418339]
[1756461303976,0.06,207.79,207.78,59.32418339]
[1756461304173,0.06,207.79,207.78,163.64418338]
[1756461304359,0.06,207.79,207.78,137.64418338]
[1756461304560,0.74,207.79,207.78,82.41603502]
[1756461304769,0.74,207.79,207.78,147.11603502]
[1756461305577,0.74,207.79,207.78,4.09603503]
[1756461305759,0.74,207.79,207.78,42.79603503]
[1756461307178,0.74,207.79,207.78,42.77603503]
[1756461307483,0.74,207.79,207.78,4.09603503]
[1756461307657,17.26791674,207.79,207.78,4.09603503]
[1756461307861,12.45536561,207.79,207.78,42.77603503]
[1756461308073,12.45536561,207.79,207.78,4.09603503]
[1756461308265,12.45536561,207.79,207.78,42.77603503]
[1756461308971,17.26791674,207.79,207.78,4.09603503]
[1756461309661,29.29929457,207.79,207.75,4.09603503]
[1756461309857,11.71536561,207.76,207.74,4.09603503]
[1756461310162,0.68,207.78,207.74,3.37603503]
[1756461310464,11.71536561,207.75,207.74,3.37603503]
[1756461310865,12.39536561,207.75,207.74,3.37603503]
[1756461311776,17.20884334,207.75,207.74,3.37603503]
[1756461312156,0.68,207.75,207.74,3.37603503]
[1756461312383,12.39536561,207.75,207.74,42.05603503]
[1756461314977,17.20884334,207.75,207.74,42.05603503]
[1756461315682,12.39536561,207.75,207.74,42.05603503]
[1756461316462,0.68,207.75,207.74,42.05603503]
[1756461317670,12.39536561,207.75,207.74,42.05603503]
[1756461317873,0.68,207.75,207.74,42.05603503]
[1756461318683,12.39536561,207.75,207.74,42.05603503]
[1756461318867,17.20884334,207.75,207.74,42.05603503]
[1756461319382,12.39536561,207.75,207.74,42.05603503]
[1756461319767,0.68,207.75,207.74,42.08603503]
[1756461320078,0.74,207.75,207.74,42.08603503]
[1756461320279,5.55347773,207.75,207.74,42.08603503]
[1756461320505,17.26884334,207.75,207.74,42.08603503]
[1756461322097,12.45536561,207.75,207.74,3.40603503]
[1756461322391,0.74,207.75,207.74,42.06603503]
[1756461323188,12.45536561,207.75,207.74,42.06603503]
[1756461323366,17.26884334,207.75,207.74,3.40603503]
[1756461324267,12.45536561,207.75,207.74,3.40603503]
[1756461325594,17.26884334,207.75,207.74,42.06603503]
[1756461325781,17.26884334,207.75,207.74,0.03]
[1756461326571,5.55347773,207.75,207.74,0.03]
[1756461326773,17.26884334,207.75,207.74,0.03]